bitfinex/quotes_ETHUSD_20250210
["timestamp","ask_amount","ask_price","bid_price","bid_amount"]
[1739154063378,0.06547789,2583.2,2583.1,2.45693096]
[1739154063714,3.87116,2583.2,2583.1,2.45693096]
[1739154063944,3.93663789,2583.2,2583.1,2.45693096]
[1739154064145,3.93663789,2583.2,2583.1,2.78416406]
[1739154064146,0.06547789,2583.2,2583.1,2.78416406]
[1739154064352,0.7676002,2583.9,2583.1,2.78416406]
[1739154064647,3.93663789,2583.2,2583.1,2.45693096]
[1739154065665,3.87191,2582.7,2582.6,0.8154]
[1739154065839,3.87191,2582.7,2582.3,0.8154]
[1739154066807,0.06506202,2582.6,2582.3,0.8154]
[1739154067002,0.06506202,2582.6,2582.5,2.45693096]
[1739154067330,3.93684185,2582.6,2582.5,2.45693096]
[1739154067947,0.06478185,2582.6,2582.5,2.45693096]
[1739154068171,3.87178,2582.8,2582.5,2.45693096]
[1739154068509,3.87194,2582.7,2582.5,2.45693096]
[1739154068709,3.87206,2582.6,2582.5,2.45693096]
[1739154068909,3.93691827,2582.6,2582.3,0.8154]
[1739154069243,3.93691827,2582.6,2582.2,2.45693096]
[1739154069809,3.87234,2582.5,2582.2,2.45693096]
[1739154070119,3.87231,2582.5,2582.2,2.45693096]
[1739154070415,0.06485827,2582.4,2582.2,2.45693096]
[1739154071010,0.7308,2582.7,2582.2,2.45693096]
[1739154071011,3.87192,2582.7,2582.2,2.78497406]
[1739154071252,3.87192,2582.7,2582.5,2.45693096]
[1739154071854,3.87206,2582.6,2582.5,2.45693096]
[1739154072029,3.87206,2582.6,2582.2,37.78497406]
[1739154073053,3.87206,2582.6,2582.2,2.45693096]
[1739154073820,3.87193,2582.7,2582.2,2.45693096]
[1739154075168,3.87209,2582.6,2582.2,2.45693096]
[1739154076036,3.8724,2582.4,2582.2,2.45693096]
[1739154076240,3.87251,2582.3,2582.2,2.45693096]
[1739154076440,3.936248,2582.3,2582.2,2.45693096]
[1739154077066,0.063738,2582.3,2582.2,2.45693096]
[1739154077653,3.87176,2582.8,2582.2,2.78497406]
[1739154077864,0.06364459,2582.3,2582.2,3.33497406]
[1739154078073,3.87204,2582.7,2582.2,2.78497406]
[1739154078245,3.87204,2582.7,2582.2,2.45693096]
[1739154078440,7.74406,2582.7,2582.2,2.45693096]
[1739154078648,9.92215,2583.1,2582.2,2.45693096]
[1739154078649,3.87251,2582.3,2582.2,2.45693096]
[1739154078854,7.74456,2582.5,2582.2,2.45693096]
[1739154079184,3.87251,2582.3,2582.2,2.45693096]
[1739154079681,3.87274,2582.2,2581.9,2.45693096]
[1739154080045,3.87246,2582.4,2581.9,2.45693096]
[1739154080244,0.06364459,2582.1,2581.9,2.45693096]
[1739154080446,3.87262,2582.3,2581.9,2.45693096]
[1739154080671,0.06364459,2582.0,2581.9,2.45693096]
[1739154080872,3.87284,2582.1,2581.9,2.45693096]
[1739154081087,0.06346625,2582.0,2581.9,2.45693096]
[1739154081543,3.87262,2582.3,2581.9,2.45693096]
[1739154081743,0.06346625,2582.2,2581.9,2.45693096]
[1739154082053,3.87277,2582.2,2581.9,2.45693096]
[1739154082248,0.06346625,2582.1,2581.9,2.45693096]
[1739154082940,0.06346625,2582.0,2581.9,2.45693096]
[1739154083147,3.87255,2582.3,2581.9,2.45693096]
[1739154083591,0.06344077,2582.2,2582.0,3.87288]
[1739154083786,9.19209,2582.6,2582.0,3.87288]
[1739154084146,0.7308,2582.9,2582.0,1.3735]
[1739154084449,0.06357666,2582.8,2582.5,0.8235]
[1739154084794,3.8714,2583.1,2582.7,2.45693096]
[1739154085449,3.87148,2583.0,2582.7,2.45693096]
[1739154085655,7.74285,2583.1,2582.7,2.45693096]
[1739154085998,3.87176,2582.8,2582.5,0.8235]
[1739154086150,3.87176,2582.8,2582.4,2.45693096]
[1739154086398,7.74428,2582.6,2582.4,2.45693096]
[1739154086548,3.87212,2582.6,2582.4,2.45693096]
[1739154088790,3.87221,2582.5,2582.4,2.45693096]
[1739154089989,3.87221,2582.5,2582.1,2.45693096]
[1739154090163,7.74455,2582.5,2582.1,2.45693096]
[1739154090361,3.87266,2582.2,2581.9,0.8235]
[1739154091244,0.06342381,2582.1,2581.9,0.8235]
[1739154092964,3.87269,2582.2,2581.9,0.8235]
[1739154093170,0.06328794,2582.0,2581.9,0.8235]
[1739154093984,3.87269,2582.2,2581.9,0.8235]
[1739154094505,3.93613794,2582.1,2581.9,0.8235]
[1739154094647,0.06328794,2582.1,2581.9,0.8235]
[1739154095084,3.87269,2582.2,2581.9,0.8235]
[1739154095541,3.87281,2582.1,2581.8,2.45693096]
[1739154095744,3.87312,2581.9,2581.6,0.8235]
[1739154095984,3.93578371,2582.1,2581.6,0.8235]
[1739154096158,3.87299,2582.0,2581.6,0.8235]
[1739154096601,0.06297371,2581.9,2581.6,0.8235]
[1739154096746,3.87313,2581.9,2581.6,0.8235]
[1739154096948,0.06297371,2581.8,2581.6,0.8235]
[1739154097195,3.87261,2582.3,2581.7,3.87341]
[1739154097501,0.06297371,2582.2,2581.9,2.45693096]
[1739154097671,3.87286,2582.1,2581.9,2.45693096]
[1739154098076,0.06297371,2582.0,2581.9,2.45693096]
[1739154098288,3.87322,2581.9,2581.6,2.45693096]
[1739154098794,3.87341,2581.7,2581.4,0.8001]
[1739154098952,3.87367,2581.6,2581.4,0.8001]
[1739154099151,3.87375,2581.5,2581.3,2.45693096]
[1739154099489,0.06297371,2581.4,2581.3,2.45693096]
[1739154099862,3.93683371,2581.4,2581.1,0.8001]
[1739154100062,3.87404,2581.3,2581.0,2.45693096]
[1739154100277,3.87459,2581.0,2580.7,2.45693096]
[1739154100652,0.0623195,2580.9,2580.7,2.45693096]
[1739154100853,3.87476,2580.8,2580.7,2.45693096]
[1739154101089,3.87473,2580.9,2580.7,2.45693096]
[1739154101428,0.0623195,2580.8,2580.7,2.45693096]
[1739154101965,3.87435,2581.1,2580.7,2.45693096]
[1739154102491,0.0619965,2581.0,2580.7,2.45693096]
[1739154103185,3.9364765,2581.0,2580.7,2.45693096]
[1739154104293,0.0619965,2581.0,2580.7,2.45693096]
[1739154104592,0.0619965,2581.0,2580.9,0.8001]
[1739154104971,3.87472,2580.9,2580.7,2.45693096]
[1739154105388,0.0620305,2581.0,2580.7,2.45693096]
[1739154105902,3.8744,2581.1,2580.7,2.45693096]
[1739154106073,0.062039,2580.9,2580.7,2.45693096]
[1739154106274,3.8744,2581.1,2580.7,2.45693096]
[1739154106573,0.06110429,2581.0,2580.7,2.45693096]
[1739154106774,3.87417,2581.2,2580.7,3.17012706]
[1739154106969,0.06109579,2581.1,2580.7,2.45693096]
[1739154107490,0.06109579,2581.1,2580.7,6.33184096]
[1739154108016,5.32,2581.4,2581.0,3.25703096]
[1739154108179,5.32,2581.4,2581.3,2.45693096]
[1739154108379,3.87341,2581.7,2581.3,2.45693096]
[1739154108975,4.64327921,2581.7,2581.3,2.45693096]
[1739154109134,0.76986921,2581.7,2581.4,3.87386]
[1739154109414,0.76986921,2581.7,2581.3,3.25703096]
[1739154109576,4.64340921,2581.7,2581.3,3.25703096]
[1739154110090,0.76986921,2581.7,2581.3,3.25703096]
[1739154110829,4.60407,2581.8,2581.3,3.25703096]
[1739154111119,4.60322,2582.4,2581.8,3.87322]
[1739154111302,3.87242,2582.4,2582.0,2.45693096]
[1739154111503,0.7874663,2582.7,2582.3,2.45693096]
[1739154111706,3.87218,2582.6,2582.3,2.45693096]
[1739154111903,4.6593863,2582.7,2582.3,2.45693096]
[1739154112285,4.60243,2582.9,2582.3,2.45693096]
[1739154112487,3.87134,2583.1,2582.6,3.23833096]
[1739154112679,4.79873022,2583.3,2582.6,7.11039096]
[1739154112680,8.47297,2583.3,2582.6,7.11039096]
[1739154112881,3.87104,2583.3,2582.9,2.45693096]
[1739154113420,3.87128,2583.2,2582.9,2.45693096]
[1739154113634,3.87133,2583.1,2582.6,4.11750782]
[1739154113922,3.87179,2582.8,2582.6,2.45693096]
[1739154114292,8.47385,2583.0,2582.6,2.45693096]
[1739154114623,4.60226,2583.0,2582.6,2.45693096]
[1739154114981,3.87146,2583.0,2582.6,2.45693096]
[1739154115181,3.87135,2583.1,2582.6,2.45693096]
[1739154115626,3.87135,2583.1,2582.5,7.01755666]
[1739154115787,3.87135,2583.1,2582.5,3.14536666]
[1739154115997,0.78413122,2583.2,2582.5,3.14536666]
[1739154116222,3.87158,2583.0,2582.5,3.14536666]
[1739154117431,0.78413122,2583.2,2582.2,3.92676666]
[1739154117750,3.87133,2583.1,2582.5,3.14536666]
[1739154117941,3.87133,2583.1,2582.5,7.01746666]
[1739154118137,0.78413122,2583.2,2582.6,0.7814]
[1739154118457,0.78413122,2583.2,2582.7,3.8719]
[1739154118740,3.87132,2583.1,2582.6,0.7814]
[1739154118943,0.78413122,2583.2,2582.6,4.65343]
[1739154119142,13.0622,2583.3,2582.6,4.65343]
[1739154119343,5.32,2583.3,2582.8,7.01710666]
[1739154119514,6.08016387,2583.4,2582.8,7.01710666]
[1739154119716,5.32,2583.4,2582.8,3.14536666]
[1739154119934,5.32,2583.4,2583.2,0.7814]
[1739154120141,3.87081,2583.5,2583.2,0.7814]
[1739154120646,3.87081,2583.5,2583.1,3.14536666]
[1739154120828,3.87134,2583.1,2582.8,3.14536666]
[1739154121030,3.87147,2583.0,2582.6,0.7814]
[1739154121236,3.93614409,2582.9,2582.6,0.7814]
[1739154122547,3.87223,2582.5,2582.3,0.7814]
[1739154122706,3.87223,2582.5,2582.0,0.7814]
[1739154123033,3.87223,2582.5,2581.4,4.21684]
[1739154123034,3.87291,2582.1,2581.6,3.14536666]
[1739154123202,3.87314,2581.9,2581.5,0.7814]
[1739154123400,0.06395873,2581.8,2581.5,2.28316456]
[1739154123817,3.87344,2581.7,2581.3,3.86235558]
[1739154124079,0.06350016,2581.6,2581.3,3.14536666]
[1739154124244,3.87344,2581.7,2581.3,3.14536666]
[1739154124445,3.87327,2581.8,2581.3,3.14536666]
[1739154124702,0.06256596,2581.7,2581.3,3.14536666]
[1739154124846,3.87318,2581.9,2581.3,3.92545233]
[1739154125050,0.06256596,2581.8,2581.6,3.14536666]
[1739154125360,5.32,2582.2,2581.7,0.7814]
[1739154125361,9.19269,2582.2,2581.7,0.7814]
[1739154125967,0.1933182,2582.4,2582.0,3.87286]
[1739154126170,0.1933182,2582.4,2582.2,3.97066666]
[1739154126584,3.87207,2582.6,2582.2,3.97066666]
[1739154126760,4.63715921,2582.8,2582.2,3.97066666]
[1739154126959,0.76536921,2582.8,2582.5,3.14536666]
[1739154127290,3.87151,2583.0,2582.5,3.14536666]
[1739154127972,5.32,2584.0,2582.9,3.14536666]
[1739154128175,4.60064,2584.1,2583.4,3.14536666]
[1739154128385,7.74048,2583.9,2583.4,3.14536666]
[1739154128589,3.87022,2583.9,2583.4,3.14536666]
[1739154128910,3.8706,2583.6,2583.2,0.8253]
[1739154129070,3.87043,2583.7,2583.2,0.8253]
[1739154129516,7.74099,2583.7,2583.2,0.8253]
[1739154129806,3.87114,2583.3,2582.9,0.8253]
[1739154129962,3.87147,2583.0,2582.6,3.97066666]
[1739154130162,3.87163,2582.9,2582.6,3.97066666]
[1739154130391,3.87147,2583.0,2582.6,3.97066666]
[1739154130595,3.86997,2584.0,2582.9,3.14536666]
[1739154130867,3.87059,2583.6,2583.2,3.14536666]
[1739154131068,3.0,2583.4,2582.6,5.01773333]
[1739154131277,3.87169,2582.9,2582.6,3.14536666]
[1739154131702,3.87136,2583.1,2582.6,3.14536666]
[1739154131888,3.8715,2583.0,2582.6,3.14536666]
[1739154132494,0.77252186,2583.0,2582.6,3.14536666]
[1739154132695,3.87201,2582.7,2582.3,3.97066666]
[1739154132898,0.77252186,2583.0,2582.3,4.36773333]
[1739154132899,3.87171,2582.9,2582.3,4.36773333]
[1739154133282,3.87171,2582.9,2582.3,8.24018333]
[1739154133509,0.77252186,2583.0,2582.6,3.14536666]
[1739154133667,0.7308,2583.3,2582.6,3.14536666]
[1739154133668,3.87108,2583.3,2582.6,3.14536666]
[1739154133867,3.87076,2583.5,2582.5,3.87219]
[1739154133868,3.87076,2583.5,2582.9,7.01692666]
[1739154134101,3.87076,2583.5,2583.0,0.8253]
[1739154134309,3.0,2583.6,2583.0,4.69676]
[1739154134490,3.87099,2583.4,2583.0,0.8253]
[1739154134689,3.0,2583.6,2582.7,1.52705567]
[1739154134894,3.87126,2583.2,2582.7,0.8253]
[1739154135504,3.87126,2583.2,2582.6,3.14536666]
[1739154135505,3.87162,2582.9,2582.6,3.14536666]
[1739154136111,3.87135,2583.1,2582.6,3.14536666]
[1739154136408,3.87194,2582.7,2582.3,3.97066666]
[1739154136607,3.87236,2582.4,2582.0,3.97066666]
[1739154136778,3.87218,2582.6,2582.0,5.01773333]
[1739154137281,0.06378894,2582.5,2582.1,3.87279]
[1739154137477,3.87218,2582.6,2582.1,3.87279]
[1739154137682,3.87183,2582.8,2582.2,3.87266]
[1739154137932,0.06378894,2582.7,2582.3,3.14536666]
[1739154138287,4.60204,2583.2,2582.6,3.14536666]
[1739154138475,0.06378894,2583.1,2582.6,3.96286666]
[1739154138904,3.93511894,2583.1,2582.6,3.96286666]
[1739154139123,3.93510894,2583.1,2582.6,4.74636333]
[1739154139320,0.84390685,2583.1,2582.6,4.74636333]
[1739154139629,4.71531685,2583.1,2582.6,4.74636333]
[1739154139922,0.06378894,2583.1,2582.8,3.87169]
[1739154140111,0.06378894,2583.1,2582.7,3.87181]
[1739154140312,3.87114,2583.3,2582.8,0.86181733]
[1739154140509,3.93501686,2583.2,2582.6,4.74636333]
[1739154140712,3.87155,2583.0,2582.6,4.74636333]
[1739154141022,3.87116,2583.2,2582.6,4.74636333]
[1739154141182,3.87136,2583.1,2582.6,4.74636333]
[1739154141393,0.06403514,2583.0,2582.6,4.74636333]
[1739154141629,4.64287715,2583.4,2582.8,3.87173]
[1739154141785,0.06405212,2583.3,2582.8,3.87173]
[1739154141984,3.87128,2583.2,2582.7,0.47463633]
[1739154142495,0.06404363,2583.1,2582.7,0.47463633]
[1739154143190,0.06404363,2583.1,2582.9,3.14536666]
[1739154143397,9.19062,2583.6,2583.1,0.8175]
[1739154143596,0.06404363,2583.5,2583.1,0.8175]
[1739154144692,3.87102,2583.3,2582.9,3.14536666]
[1739154144893,0.06422187,2583.2,2582.9,3.14536666]
[1739154145191,3.87178,2582.8,2582.6,3.14536666]
[1739154145420,0.06423036,2582.7,2582.4,7.3175]
[1739154145609,3.87178,2582.8,2582.4,7.3175]
[1739154145813,3.93616036,2582.7,2582.4,0.8175]
[1739154146014,3.93616036,2582.7,2582.3,3.14536666]
[1739154146015,0.06423036,2582.7,2582.3,3.14536666]
[1739154146195,3.872,2582.7,2582.3,3.14536666]
[1739154146396,3.87234,2582.5,2582.3,3.14536666]
[1739154146590,3.87221,2582.5,2582.1,0.8175]
[1739154146814,3.87238,2582.4,2582.1,0.8175]
[1739154147005,3.93605007,2582.4,2582.1,0.8175]
[1739154147193,3.87255,2582.3,2582.1,0.8175]
[1739154147398,3.87238,2582.4,2582.1,0.8175]
[1739154147738,0.06367007,2582.3,2582.1,0.8175]
[1739154148929,3.93618007,2582.3,2582.1,0.8175]
[1739154149115,3.87281,2582.1,2582.0,3.14536666]
[1739154149321,3.87281,2582.1,2581.7,3.96286666]
[1739154149547,0.06367007,2582.0,2581.7,3.96286666]
[1739154150039,0.06367007,2582.0,2581.4,4.4238]
[1739154150040,3.87345,2581.7,2581.4,3.96286666]
[1739154150257,3.93683657,2581.6,2581.3,6.5]
[1739154150814,3.87427,2581.2,2580.8,3.14536666]
[1739154151008,0.06271883,2581.1,2580.8,3.14536666]
[1739154151208,3.87452,2581.0,2580.8,3.14536666]
[1739154151431,0.06269334,2580.9,2580.8,3.14536666]
[1739154151711,3.87448,2581.0,2580.5,3.14536666]
[1739154151934,0.06269334,2580.9,2580.5,3.14536666]
[1739154152374,3.87477,2580.8,2580.5,3.14536666]
[1739154152648,3.87562,2580.3,2580.1,7.3175]
[1739154152848,0.06206443,2580.2,2579.9,3.14536666]
[1739154153049,3.87562,2580.3,2579.9,3.14536666]
[1739154153263,0.06206443,2580.2,2579.9,3.14536666]
[1739154153417,3.87562,2580.3,2579.9,3.14536666]
[1739154153606,3.87593,2580.1,2579.9,3.14536666]
[1739154153806,3.87593,2580.1,2579.4,0.8175]
[1739154154129,3.87613,2579.9,2579.4,0.8175]
[1739154154323,3.87645,2579.7,2579.3,9.64536666]
[1739154154654,3.87645,2579.7,2579.3,6.5]
[1739154154655,3.87673,2579.5,2579.3,6.5]
[1739154154807,0.05984575,2579.4,2579.1,0.8175]
[1739154155528,0.05984575,2579.4,2579.0,3.14536666]
[1739154156549,3.87654,2579.7,2579.0,3.14536666]
[1739154156863,0.78981247,2579.4,2578.8,0.1449142]
[1739154157061,0.78981247,2579.4,2578.8,4.0226642]
[1739154157207,0.05984575,2579.3,2578.8,0.1449142]
[1739154157415,3.93696575,2579.3,2578.8,0.1449142]
[1739154157677,0.7308,2579.2,2578.8,0.1449142]
[1739154157828,0.05894357,2579.1,2578.8,0.1449142]
[1739154158652,3.93626357,2579.1,2578.8,0.1449142]
[1739154159009,4.65318132,2579.0,2578.8,0.1449142]
[1739154159209,0.05727551,2578.9,2578.8,0.1449142]
[1739154159643,3.93489551,2578.9,2578.8,0.1449142]
[1739154160336,6.93489551,2578.9,2578.8,0.1449142]
[1739154160960,7.66569551,2578.9,2578.8,0.1449142]
[1739154161313,7.66569551,2578.9,2578.8,1e-08]
[1739154161513,3.87862,2578.3,2577.7,0.821]
[1739154161753,3.0,2578.8,2577.8,3.14536666]
[1739154161754,0.05689223,2578.2,2577.8,3.14536666]
[1739154162115,3.87839,2578.4,2577.8,3.14536666]
[1739154162316,0.05689223,2578.3,2577.8,7.02462666]
[1739154162613,0.05689223,2578.3,2577.9,3.87912]
[1739154162818,5.51754617,2578.6,2577.9,3.87912]
[1739154163057,0.05689223,2578.5,2577.9,3.87912]
[1739154163277,0.05689223,2578.5,2578.2,3.87855]
[1739154163564,0.05689223,2578.5,2578.1,3.14536666]
[1739154163718,3.93514223,2578.5,2578.1,3.14536666]
[1739154164220,0.05689223,2578.5,2578.1,3.14536666]
[1739154164845,0.77604081,2578.4,2578.1,3.14536666]
[1739154165026,0.0567048,2578.3,2578.1,3.14536666]
[1739154166518,0.0567048,2578.3,2577.8,3.14536666]
[1739154166911,0.0567048,2578.3,2577.1,4.43532]
[1739154166912,3.0,2578.0,2577.5,3.14536666]
[1739154167353,9.92944,2578.3,2577.8,7.02463666]
[1739154167354,0.0566622,2577.9,2577.8,7.02463666]
[1739154167519,0.0566622,2577.9,2577.8,7.84563666]
[1739154167847,5.32,2578.3,2578.0,3.87885]
[1739154168049,5.32,2578.3,2578.1,3.14536666]
[1739154168228,0.7308,2578.8,2578.4,3.87833]
[1739154168430,5.32,2579.0,2578.4,7.02369666]
[1739154168637,10.11773146,2579.1,2578.4,7.02369666]
[1739154168838,0.79374693,2578.8,2578.4,3.14536666]
[1739154169453,6.0508,2579.1,2578.4,7.02373666]
[1739154170259,0.78737894,2578.9,2578.4,7.02373666]
[1739154170416,0.78737894,2578.9,2578.5,3.87821]
[1739154171155,6.0508,2579.1,2578.4,3.14536666]
[1739154171357,5.32,2579.1,2578.8,3.87768]
[1739154171655,5.32,2579.7,2579.3,3.87702]
[1739154171948,9.19656,2579.7,2579.0,3.14536666]
[1739154172152,4.65991241,2579.4,2578.7,7.02319666]
[1739154172359,5.32,2579.7,2579.3,3.87702]
[1739154172531,6.0508,2579.8,2579.3,3.87694]
[1739154173065,3.8756,2580.3,2579.6,3.14536666]
[1739154173218,0.05660259,2579.7,2579.6,3.14536666]
[1739154173423,0.79219835,2580.1,2579.6,3.14536666]
[1739154173654,0.05660259,2580.0,2579.6,7.02193666]
[1739154173855,0.05660259,2580.0,2579.6,3.14536666]
[1739154174079,0.77185571,2580.3,2579.9,3.87611]
[1739154174231,0.05660259,2579.9,2579.7,3.87627]
[1739154174557,3.87568,2580.2,2579.6,3.14536666]
[1739154174758,0.05660259,2579.8,2579.6,3.14536666]
[1739154175067,0.77185571,2580.3,2579.6,3.14536666]
[1739154175068,0.77185571,2580.3,2579.8,3.87626]
[1739154175360,0.77185571,2580.3,2580.1,3.87571]
[1739154176258,0.7308,2580.7,2580.2,3.87553]
[1739154176491,6.87465,2580.9,2580.2,3.87553]
[1739154176492,4.60529,2581.0,2580.2,3.97836666]
[1739154176622,4.64973146,2580.8,2580.2,3.97836666]
[1739154176820,3.87493,2580.7,2580.2,3.14536666]
[1739154177049,3.87532,2580.5,2579.9,0.833]
[1739154177247,3.87505,2580.7,2579.9,3.97836666]
[1739154177433,3.87536,2580.5,2579.9,3.97836666]
[1739154178045,3.87536,2580.5,2579.9,7.85442666]
[1739154178260,3.87536,2580.5,2579.9,11.73042666]
[1739154178454,3.87536,2580.5,2579.9,7.85436666]
[1739154179076,3.8747,2580.9,2580.2,3.14536666]
[1739154179240,6.0508,2581.0,2580.7,3.87478]
[1739154179579,5.32,2581.0,2580.5,7.02048666]
[1739154179926,0.76207261,2580.9,2580.5,7.02048666]
[1739154180128,3.19586538,2581.2,2580.6,0.833]
[1739154180436,0.77045812,2581.0,2580.7,3.87488]
[1739154180649,0.77045812,2581.0,2580.3,0.833]
[1739154180848,3.87493,2580.7,2580.3,0.833]
[1739154181028,3.87467,2580.9,2580.3,0.833]
[1739154181229,0.06018597,2580.8,2580.3,0.833]
[1739154181757,3.93497597,2580.8,2580.3,0.833]
[1739154181981,0.06018597,2580.8,2580.3,0.833]
[1739154182121,0.06018597,2580.8,2579.9,1.17307367]
[1739154182122,3.87519,2580.6,2580.0,0.833]
[1739154182321,3.87539,2580.4,2580.0,0.833]
[1739154182525,3.87556,2580.3,2579.9,3.14536666]
[1739154182761,3.8757,2580.2,2579.8,6.5]
[1739154182963,3.93584542,2580.2,2579.7,0.833]
[1739154183364,3.87586,2580.1,2579.7,0.833]
[1739154183536,3.87598,2580.0,2579.7,0.833]
[1739154183861,0.05973518,2580.0,2579.6,3.14536666]
[1739154184165,3.93584518,2580.0,2579.6,3.14536666]
[1739154184770,0.05973518,2580.0,2579.6,3.14536666]
[1739154185347,3.87637,2579.8,2579.4,0.833]
[1739154185679,3.87647,2579.7,2579.3,3.14536666]
[1739154185883,3.93576271,2579.7,2579.1,0.833]
[1739154186092,0.05929271,2579.7,2579.3,7.02226666]
[1739154186373,6.09057657,2580.1,2579.6,3.14536666]
[1739154186584,0.05916504,2579.6,2579.3,7.02230666]
[1739154186784,3.87621,2579.9,2579.3,3.14536666]
[1739154186952,3.87621,2579.9,2579.3,7.02237666]
[1739154187288,0.05916504,2579.8,2579.6,7.02189666]
[1739154187486,6.09057657,2580.1,2579.6,7.02189666]
[1739154187649,0.05919058,2579.7,2579.6,7.02189666]
[1739154187977,6.09057657,2580.1,2579.6,7.02189666]
[1739154188297,5.32,2580.1,2579.6,7.85279666]
[1739154188440,0.05919058,2580.0,2579.6,3.97626666]
[1739154189988,0.05919058,2580.0,2579.6,7.85274666]
[1739154190193,3.93530058,2580.0,2579.6,3.97626666]
[1739154190486,3.8763,2579.8,2579.3,3.97626666]
[1739154190893,0.05919058,2579.7,2579.4,3.87686]
[1739154191100,0.05919058,2579.7,2579.6,7.02193666]
[1739154191389,9.1959,2580.1,2579.6,7.02193666]
[1739154191590,0.05919058,2579.7,2579.6,7.02193666]
[1739154191796,9.1959,2580.1,2579.6,7.02193666]
[1739154192000,0.05919058,2579.7,2579.6,7.02193666]
[1739154192769,3.875,2580.7,2579.8,3.87626]
[1739154192987,0.92573224,2580.8,2580.3,3.87536]
[1739154193186,0.79426921,2580.8,2580.3,7.85165666]
[1739154193613,3.87526,2580.5,2580.0,3.97626666]
[1739154193865,3.87595,2580.1,2579.7,3.14536666]
[1739154194101,3.87557,2580.3,2579.7,3.14536666]
[1739154194483,9.19537,2580.4,2580.0,3.14536666]
[1739154194691,5.32,2580.4,2580.0,3.14536666]
[1739154195067,3.87561,2580.3,2579.7,3.14536666]
[1739154195310,3.87582,2580.1,2579.7,3.14536666]
[1739154196029,6.87597,2580.0,2579.7,3.14536666]
[1739154196173,3.87615,2579.9,2579.6,0.8309]
[1739154196376,3.87627,2579.8,2579.4,3.14536666]
[1739154196577,3.93467697,2579.9,2579.4,3.14536666]
[1739154198085,3.87648,2579.7,2579.4,3.14536666]
[1739154198524,3.93513697,2579.6,2579.4,3.14536666]
[1739154198831,0.05852697,2579.6,2579.4,3.14536666]
[1739154199180,4.65411825,2579.7,2579.4,3.14536666]
[1739154199383,0.05852697,2579.5,2579.4,3.14536666]
[1739154199603,4.65411825,2579.7,2579.4,3.14536666]
[1739154199803,0.05852697,2579.5,2579.4,3.14536666]
[1739154199999,3.0,2579.9,2579.4,3.14536666]
[1739154200225,0.05852697,2579.5,2579.4,7.02221666]
[1739154200423,3.87539,2580.4,2579.8,0.8309]
[1739154200588,9.9259,2580.6,2579.8,3.97626666]
[1739154200589,3.87578,2580.2,2579.8,3.97626666]
[1739154200793,3.87578,2580.2,2579.8,3.14536666]
[1739154201236,3.0,2580.0,2579.5,3.97626666]
[1739154201380,3.0,2580.0,2579.8,3.14536666]
[1739154201581,3.0,2580.1,2579.8,3.14536666]
[1739154201883,3.0,2580.1,2579.5,3.97626666]
[1739154202074,3.87612,2579.9,2579.5,3.97626666]
[1739154202276,3.87641,2579.8,2579.5,3.14536666]
[1739154202496,3.87645,2579.7,2579.5,3.14536666]
[1739154202948,3.87645,2579.7,2579.2,3.95366666]
[1739154203096,7.75282,2579.8,2579.2,3.95366666]
[1739154203542,3.87641,2579.8,2579.2,3.95366666]
[1739154203804,9.19572,2580.2,2579.5,3.14536666]
[1739154203805,9.19567,2580.2,2579.5,3.14536666]
[1739154204042,9.19524,2580.5,2579.9,4.68437]
[1739154204214,3.8754,2580.4,2579.9,0.8083]
[1739154204404,5.32,2580.5,2579.9,0.8083]
[1739154204611,3.87577,2580.2,2579.6,0.8083]
[1739154204939,3.0,2580.6,2579.9,3.87601]
[1739154204940,3.87516,2580.6,2579.9,3.87601]
[1739154205148,3.0,2580.5,2580.1,3.14536666]
[1739154205356,3.87537,2580.4,2580.1,3.14536666]
[1739154205931,3.0,2580.5,2580.1,3.14536666]
[1739154206446,3.87537,2580.4,2580.1,3.14536666]
[1739154206692,3.87536,2580.4,2579.8,3.14536666]
[1739154206849,0.78960748,2580.6,2579.8,3.14536666]
[1739154207049,3.87598,2580.0,2579.8,3.14536666]
[1739154207947,3.87623,2579.9,2579.6,0.8083]
[1739154208249,3.87623,2579.9,2579.5,3.14536666]
[1739154208458,3.87598,2580.0,2579.5,3.14536666]
[1739154208809,3.87653,2579.7,2579.2,3.14536666]
[1739154209008,3.87681,2579.5,2579.2,3.14536666]
[1739154209308,3.87648,2579.7,2579.2,3.15349166]
[1739154209510,3.0,2579.8,2579.5,3.15349166]
[1739154209902,3.87702,2579.3,2579.2,3.15349166]
[1739154210103,3.87687,2579.4,2579.2,3.15349166]
[1739154211015,3.0,2579.5,2579.2,3.15349166]
[1739154211342,0.05824609,2579.4,2579.2,3.15349166]
[1739154211554,5.32,2579.7,2579.2,3.15349166]
[1739154211776,3.87672,2579.5,2579.2,3.15349166]
[1739154212244,3.93490609,2579.6,2578.9,0.8083]
[1739154212245,3.87735,2579.1,2578.9,3.96179166]
[1739154212635,0.05830568,2579.0,2578.9,3.96179166]
[1739154213146,3.93577568,2579.0,2578.9,3.15349166]
[1739154213304,0.05830568,2579.0,2578.7,3.15460495]
[1739154213509,3.93579568,2579.0,2578.7,3.15460495]
[1739154213808,0.05830568,2579.0,2578.7,3.15460495]
[1739154214204,3.93590568,2579.0,2578.7,3.15460495]
[1739154214434,3.8776,2579.0,2578.7,3.15460495]
[1739154214737,0.05830568,2578.9,2578.7,3.15460495]
[1739154215239,3.87777,2578.8,2578.7,3.15460495]
[1739154215446,3.8782,2578.6,2578.4,3.15460495]
[1739154216005,3.87777,2578.8,2578.4,3.15460495]
[1739154216006,0.05736066,2578.5,2578.4,3.15460495]
[1739154216413,3.87785,2578.8,2578.4,3.15460495]
[1739154216634,0.05720737,2578.5,2578.4,3.15460495]
[1739154216838,3.87803,2578.7,2578.4,3.15460495]
[1739154217106,3.87822,2578.5,2578.4,3.15460495]
[1739154217341,0.05720737,2578.5,2578.4,3.15460495]
[1739154218408,3.0,2579.0,2578.4,3.15460495]
[1739154218630,0.05720737,2578.5,2578.4,38.15460495]
[1739154218833,3.0,2579.0,2578.4,38.15460495]
[1739154219030,0.05720737,2578.5,2578.4,38.15460495]
[1739154219244,3.0,2579.0,2578.4,38.15460495]
[1739154219542,0.05720737,2578.9,2578.7,3.15460495]
[1739154219844,0.05720737,2578.9,2578.7,3.95930495]
[1739154221904,0.05720737,2578.9,2578.8,3.87777]
[1739154222051,3.87644,2579.7,2579.1,4.68197]